bitfinex-derivatives/quotes_BTCF0:USTF0_20251118
["timestamp","ask_amount","ask_price","bid_price","bid_amount"]
[1763482336599,0.1074736,93133.0,93130.0,0.00073266]
[1763482336600,0.14218,93131.0,93130.0,0.00073266]
[1763482336996,0.1074736,93133.0,93130.0,0.06482266]
[1763482337194,0.14218,93131.0,93130.0,0.00073266]
[1763482337396,0.14118,93131.0,93130.0,0.00073266]
[1763482337798,0.14018,93131.0,93130.0,0.00073266]
[1763482337999,0.107487,93121.0,93099.0,0.3608]
[1763482338199,0.248667,93121.0,93120.0,0.01221545]
[1763482338603,0.14218,93121.0,93120.0,0.01221545]
[1763482338904,0.14218,93121.0,93120.0,0.00082933]
[1763482339108,0.249674,93115.0,93114.0,0.01144335]
[1763482339299,0.06468,93111.0,93110.0,0.43687187]
[1763482339495,0.00016105,93124.0,93123.0,0.14017]
[1763482339999,0.3608,93146.0,93136.0,0.14017]
[1763482340000,0.1074627,93143.0,93136.0,0.14017]
[1763482340300,0.3608,93146.0,93139.0,0.14017]
[1763482340301,0.00219803,93140.0,93139.0,0.14017]
[1763482340500,0.00229989,93140.0,93139.0,0.14017]
[1763482340901,0.3608,93146.0,93145.0,0.1414]
[1763482341298,0.00016105,93149.0,93148.0,0.14911]
[1763482342508,0.3608,93155.0,93154.0,0.14911]
[1763482342702,0.1073805,93214.0,93150.0,0.04681266]
[1763482342703,0.3608,93175.0,93165.0,0.04608]
[1763482342902,0.3608,93175.0,93172.0,0.14911]
[1763482342903,0.1074271,93173.0,93172.0,0.14911]
[1763482343302,0.1539,93171.0,93170.0,0.00219803]
[1763482343907,0.2613397,93162.0,93161.0,0.00016105]
[1763482345007,0.2613397,93162.0,93161.0,5e-08]
[1763482345202,0.0787,93145.0,93144.0,0.01131876]
[1763482345507,0.1074639,93141.0,93140.0,0.15130803]
[1763482345702,0.1074697,93136.0,93135.0,0.22800555]
[1763482346097,0.00010921,93145.0,93144.0,0.14911]
[1763482346503,0.10756851,93145.0,93144.0,0.14911]
[1763482346705,0.1074697,93136.0,93135.0,0.2281666]
[1763482346899,0.1074697,93136.0,93130.0,3e-08]
[1763482346900,0.2613755,93131.0,93130.0,3e-08]
[1763482347317,0.1074907,93118.0,93104.0,0.3608]
[1763482347504,0.2723343,93106.0,93105.0,0.09715806]
[1763482347699,0.16483,93105.0,93104.0,0.3608]
[1763482347902,0.1859101,93101.0,93100.0,0.14467303]
[1763482348204,0.1075101,93101.0,93100.0,0.01332824]
[1763482348406,0.1075101,93101.0,93100.0,0.16928824]
[1763482348607,0.1075044,93106.0,93105.0,0.07604]
[1763482348814,0.1075044,93106.0,93105.0,0.43684]
[1763482349312,0.1075101,93101.0,93100.0,0.01332824]
[1763482349714,0.1075101,93101.0,93100.0,0.08936824]
[1763482350305,0.1859101,93101.0,93100.0,0.01332824]
[1763482350617,0.1849101,93101.0,93100.0,0.01332824]
[1763482350911,0.1065101,93101.0,93100.0,0.16928824]
[1763482351216,0.1075068,93104.0,93100.0,0.01332824]
[1763482351513,0.2723401,93101.0,93100.0,0.01332824]
[1763482351809,0.2723401,93101.0,93100.0,0.00073266]
[1763482352013,0.2723401,93101.0,93091.0,0.14394037]
[1763482352014,0.2723447,93097.0,93091.0,0.0443]
[1763482352509,0.1075147,93097.0,93096.0,0.16890796]
[1763482352708,0.10970933,93100.0,93099.0,0.07604]
[1763482352908,0.1075147,93097.0,93096.0,0.01294796]
[1763482353310,0.2723447,93097.0,93096.0,0.00013458]
[1763482354214,0.00219803,93100.0,93096.0,0.15609458]
[1763482354407,0.1075124,93099.0,93096.0,0.15609458]
[1763482354608,0.1075124,93099.0,93098.0,0.07604]
[1763482355208,0.1075124,93099.0,93098.0,0.15596]
[1763482355410,0.00219803,93100.0,93099.0,0.15596]
[1763482356108,0.1075124,93099.0,93096.0,0.00013458]
[1763482356311,0.16483,93097.0,93096.0,0.00013458]
[1763482356522,0.16483,93097.0,93096.0,8e-08]
[1763482356815,0.56483,93097.0,93096.0,8e-08]
[1763482357018,0.16483,93092.0,93082.0,0.01303918]
[1763482357312,0.6331505,93092.0,93082.0,0.01303918]
[1763482357509,0.2723563,93087.0,93082.0,0.01303918]
[1763482357908,0.27247796,93087.0,93082.0,0.01303918]
[1763482358107,0.10764796,93087.0,93086.0,0.15622857]
[1763482359016,0.27247796,93087.0,93086.0,0.00026857]
[1763482359608,0.27247796,93087.0,93086.0,7e-08]
[1763482360116,0.53451796,93087.0,93086.0,7e-08]
[1763482360515,0.53451796,93087.0,93070.0,0.14394037]
[1763482360714,0.00219803,93080.0,93071.0,0.3608]
[1763482361016,0.00219803,93080.0,93071.0,0.08455392]
[1763482361215,0.16483,93071.0,93070.0,0.14394037]
[1763482361415,0.00219803,93070.0,93064.0,0.1075529]
[1763482361612,0.00219803,93070.0,93064.0,0.01313261]
[1763482361811,0.00219803,93070.0,93069.0,0.15596]
[1763482362217,0.16702803,93070.0,93064.0,0.01270338]
[1763482362523,0.00219803,93070.0,93069.0,0.07604]
[1763482362711,0.00219803,93070.0,93069.0,0.24273478]
[1763482364314,0.08059803,93070.0,93069.0,0.24273478]
[1763482364615,0.16702803,93070.0,93069.0,0.08677478]
[1763482364814,0.08059803,93070.0,93069.0,0.07604]
[1763482365519,0.08059803,93070.0,93062.0,0.3608]
[1763482365520,0.16483,93063.0,93062.0,0.3608]
[1763482365715,0.26208,93072.0,93062.0,0.3608]
[1763482366015,0.0784,93067.0,93066.0,0.1835905]
[1763482366218,0.0784,93066.0,93065.0,0.1075515]
[1763482366518,0.16483,93063.0,93062.0,0.37346433]
[1763482366820,0.00219803,93060.0,93058.0,0.1075588]
[1763482367120,0.16483,93059.0,93058.0,0.1075588]
[1763482367317,0.16491376,93059.0,93058.0,0.12039149]
[1763482367827,0.16391376,93059.0,93058.0,0.12039149]
[1763482369316,0.16391376,93059.0,93058.0,0.19643149]
[1763482369617,0.16391376,93059.0,93058.0,0.12039149]
[1763482369814,0.16483,93057.0,93056.0,0.14394037]
[1763482370015,0.16483,93055.0,93054.0,0.12012951]
[1763482370218,0.16483,93055.0,93054.0,0.01256621]
[1763482370413,0.0784,93053.0,93052.0,0.1075659]
[1763482370911,0.16483,93053.0,93052.0,0.12030781]
[1763482371117,0.16483,93053.0,93052.0,0.20833739]
[1763482371517,0.21281,93058.0,93057.0,0.107561]
[1763482371714,8.376e-05,93059.0,93058.0,0.15596]
[1763482372116,0.40878,93075.0,93067.0,0.1835894]
[1763482372321,0.40878,93075.0,93067.0,0.2635094]
[1763482373226,0.00024153,93068.0,93067.0,0.2635094]
[1763482373619,0.62292,93083.0,93082.0,0.1075321]
[1763482373620,0.78775,93083.0,93082.0,0.1075321]
[1763482373925,0.00219803,93080.0,93073.0,0.14394037]
[1763482374124,0.00219803,93080.0,93074.0,0.04434]
[1763482374327,0.00219803,93080.0,93077.0,0.1075373]
[1763482374627,0.00010192,93079.0,93077.0,0.1075373]
[1763482375017,0.00010192,93079.0,93078.0,0.15596]
[1763482375336,0.00064215,93080.0,93079.0,0.2634955]
[1763482375627,0.16547215,93080.0,93076.0,0.1075386]
[1763482376127,0.001,93079.0,93076.0,0.1075386]
[1763482376432,0.001,93079.0,93078.0,0.15596]
[1763482376819,0.00064215,93080.0,93079.0,0.2634955]
[1763482377018,0.001,93080.0,93079.0,0.2634955]
[1763482378225,0.002,93080.0,93079.0,0.2634955]
[1763482378421,0.00016114,93088.0,93087.0,0.2680863]
[1763482379726,0.15330114,93088.0,93087.0,0.1075263]
[1763482380322,0.15430114,93088.0,93087.0,0.1887063]
[1763482380518,0.00116114,93088.0,93087.0,0.2680863]
[1763482381228,0.00216114,93088.0,93087.0,0.2680863]
[1763482381428,0.3608,93127.0,93125.0,0.2680424]
[1763482381631,0.3608,93135.0,93134.0,0.268032]
[1763482382126,0.00137482,93140.0,93139.0,0.2680262]
[1763482382328,0.40877,93145.0,93140.0,0.00155588]
[1763482382329,0.02491,93144.0,93140.0,0.00155588]
[1763482382528,0.40877,93145.0,93140.0,0.00155588]
[1763482382529,0.07948,93141.0,93140.0,0.00155588]
[1763482382929,0.40877,93145.0,93140.0,0.00155588]
[1763482383129,0.46245246,93145.0,93144.0,0.1074604]
[1763482383432,0.00016105,93149.0,93148.0,0.2680158]
[1763482383619,0.44028,93163.0,93162.0,0.1074397]
[1763482383825,0.1074434,93159.0,93148.0,0.50405766]
[1763482384025,0.00137482,93160.0,93148.0,0.50405766]
[1763482384026,0.00137482,93160.0,93158.0,0.1074437]
[1763482384326,0.15314,93159.0,93158.0,0.1074437]
[1763482384522,0.00137482,93160.0,93158.0,0.1886237]
[1763482384725,0.00137482,93160.0,93158.0,0.08118]
[1763482384924,0.07366,93159.0,93158.0,0.1074443]
[1763482385124,0.07366,93159.0,93154.0,0.1074489]
[1763482385424,0.00137482,93160.0,93150.0,0.00016105]
[1763482385425,0.00137482,93160.0,93159.0,0.1886231]
[1763482385625,0.08085482,93160.0,93159.0,0.1886231]
[1763482385834,0.08085482,93160.0,93159.0,0.08118]
[1763482386130,0.00137482,93160.0,93159.0,0.08118]
[1763482386431,0.08085482,93160.0,93159.0,0.08118]
[1763482386620,0.08085482,93160.0,93159.0,0.16056]
[1763482386621,0.00137482,93160.0,93159.0,0.16056]
[1763482386826,0.3608,93164.0,93163.0,0.16056]
[1763482387019,0.15314,93161.0,93160.0,0.00155588]
[1763482387424,0.00016105,93168.0,93167.0,0.16056]
[1763482387631,0.07964105,93168.0,93167.0,0.16056]
[1763482387827,0.15314,93159.0,93158.0,0.34938196]
[1763482388127,0.15314,93166.0,93165.0,0.1074361]
[1763482389624,0.08148,93161.0,93160.0,0.00155588]
[1763482389827,0.15314,93151.0,93149.0,0.1074539]
[1763482390033,0.15314,93151.0,93150.0,0.00171693]
[1763482390230,0.04797,93156.0,93151.0,0.16056]
[1763482390426,0.04797,93156.0,93150.0,0.00171693]
[1763482390427,0.07948,93153.0,93152.0,0.1074503]
[1763482390626,0.07948,93153.0,93152.0,0.1886303]
[1763482390831,0.04797,93156.0,93152.0,0.1886303]
[1763482390832,0.04797,93156.0,93154.0,0.1074489]
[1763482391024,0.07948,93155.0,93154.0,0.1074489]
[1763482391219,0.15314,93151.0,93150.0,0.00171693]
[1763482391426,0.23479881,93151.0,93150.0,0.00171693]
[1763482392832,0.23579881,93151.0,93150.0,0.00016105]
[1763482393027,0.1074605,93144.0,93142.0,0.1074616]
[1763482393226,0.15314,93131.0,93130.0,0.10903248]
[1763482393924,0.15314,93113.0,93102.0,0.01266517]
[1763482394124,0.51394,93113.0,93103.0,0.00016105]
[1763482394338,0.15314,93104.0,93103.0,0.00016105]
[1763482394523,0.2606616,93091.0,93086.0,0.00026857]
[1763482394727,0.51394,93087.0,93086.0,0.10779597]
[1763482394928,0.51394,93087.0,93086.0,0.12044829]
[1763482395324,0.62159254,93087.0,93086.0,0.12044829]
[1763482395528,0.51406634,93087.0,93086.0,0.12044829]
[1763482395929,0.15326634,93087.0,93086.0,0.12044829]
[1763482396135,0.00012634,93087.0,93086.0,0.28100829]
[1763482396931,0.07960634,93087.0,93086.0,0.20162829]
[1763482397137,0.51506634,93087.0,93086.0,0.00026857]
[1763482397329,0.15426634,93087.0,93086.0,0.00026857]
[1763482397531,0.00112634,93087.0,93086.0,0.53440735]
[1763482397724,0.00012634,93087.0,93086.0,0.52162857]
[1763482398040,0.07960634,93087.0,93086.0,0.01343412]
[1763482398330,0.15326634,93087.0,93086.0,0.01343412]
[1763482398535,0.15326634,93087.0,93086.0,0.00026857]
[1763482398925,0.00012634,93087.0,93086.0,0.16082857]
[1763482399328,0.3608,93108.0,93107.0,0.1886831]
[1763482399530,0.3608,93108.0,93107.0,0.2680631]
[1763482399726,0.3608,93116.0,93115.0,0.2680539]
[1763482400033,0.3608,93116.0,93105.0,0.4084]
[1763482400034,0.07948,93112.0,93111.0,0.1074985]
[1763482400539,0.3608,93116.0,93115.0,0.2680539]
[1763482401134,0.00219803,93120.0,93119.0,0.2497093]
[1763482401526,0.00016114,93121.0,93119.0,0.2497093]
[1763482401732,0.00016114,93121.0,93120.0,0.17717]
[1763482402145,0.3608,93133.0,93132.0,0.2496943]
[1763482402730,0.262,93152.0,93143.0,0.1074616]
[1763482403241,0.14775803,93140.0,93139.0,0.1074657]
[1763482403538,0.14775803,93140.0,93137.0,0.1074674]
[1763482403738,0.14556,93135.0,93134.0,0.00016104]
[1763482403939,0.54896,93135.0,93134.0,0.00016104]
[1763482404137,0.07042,93118.0,93117.0,0.3608]
[1763482404333,0.07042,93118.0,93115.0,0.1074933]
[1763482404737,0.07042,93118.0,93111.0,0.262]
[1763482404738,0.07042,93118.0,93117.0,0.1074916]
[1763482405347,0.14556,93118.0,93117.0,0.1074916]
[1763482405547,0.14556,93109.0,93108.0,0.00016104]
[1763482405748,0.2530608,93109.0,93108.0,0.00016104]
[1763482405945,0.07042,93102.0,93101.0,0.1075092]
[1763482406144,0.14556,93102.0,93101.0,0.1075092]
[1763482406452,0.00219803,93100.0,93096.0,0.1075147]
[1763482406646,0.3608,93102.0,93090.0,0.24193766]
[1763482406647,0.3608,93102.0,93099.0,0.14222]
[1763482406841,0.36299803,93110.0,93109.0,0.1797008]
[1763482407041,0.36315907,93110.0,93091.0,0.00016104]
[1763482407236,0.14554,93101.0,93100.0,0.1075112]
[1763482407441,0.07432,93098.0,93097.0,0.1075145]
[1763482407736,0.14554,93098.0,93097.0,0.1075145]
[1763482408342,0.00219803,93100.0,93097.0,0.1075145]
[1763482408739,0.14554,93094.0,93091.0,0.00016104]
[1763482409050,0.07432,93092.0,93091.0,0.00016104]
[1763482409551,0.2530605,93092.0,93091.0,0.00016104]
[1763482409736,0.14554,93092.0,93091.0,0.10768264]
[1763482410245,0.14554,93092.0,93091.0,0.00016104]
[1763482411244,0.3608,93102.0,93093.0,0.14206]
[1763482411439,0.262,93098.0,93097.0,0.1075147]
[1763482411641,0.40754,93098.0,93097.0,0.1075147]
[1763482412144,0.00219803,93100.0,93099.0,0.14206]
[1763482412652,0.14554,93099.0,93098.0,0.1075127]
[1763482413246,0.00219803,93100.0,93099.0,0.14206]
[1763482413943,0.14554,93099.0,93098.0,0.1075127]
[1763482414342,0.00219803,93100.0,93099.0,0.2495724]
[1763482414547,0.33632,93109.0,93108.0,0.177672]
[1763482414743,0.262,93109.0,93108.0,0.249562]
[1763482415137,0.36315907,93110.0,93108.0,0.249562]
[1763482415345,0.07432,93109.0,93108.0,0.249562]
[1763482415539,0.07432,93109.0,93099.0,0.24193766]
[1763482415950,0.07432,93105.0,93104.0,0.1075065]
[1763482416150,0.14554,93105.0,93104.0,0.1075065]
[1763482416547,0.14554,93099.0,93098.0,0.1075129]
[1763482418251,0.00219803,93100.0,93099.0,0.14206]
[1763482419256,0.6228,93106.0,93105.0,0.14206]
[1763482419458,0.00235907,93110.0,93109.0,0.2495608]
[1763482419656,0.14789907,93110.0,93109.0,0.1075008]
[1763482420548,0.1075026,93108.0,93102.0,0.1075089]
[1763482420752,0.14554,93102.0,93101.0,0.1187]
[1763482420953,0.14554,93102.0,93101.0,0.2262101]
[1763482421453,0.14554,93102.0,93101.0,0.2963801]
[1763482421955,0.14554,93102.0,93101.0,0.1776801]
[1763482422146,0.00016104,93110.0,93109.0,0.2495608]
[1763482422346,0.00235907,93110.0,93109.0,0.2495608]
[1763482423157,0.07667907,93110.0,93109.0,0.2495608]
[1763482423358,0.14554,93107.0,93106.0,0.1075035]
[1763482424158,0.14554,93102.0,93100.0,0.05740854]
[1763482424361,0.50634,93106.0,93105.0,0.1075054]
[1763482424856,0.14554,93103.0,93102.0,0.1075081]
[1763482425061,0.07432,93101.0,93100.0,0.19946854]
[1763482425249,0.14554,93101.0,93100.0,0.19946854]
[1763482425560,0.3608,93106.0,93105.0,0.14206]
[1763482425858,0.3608,93106.0,93105.0,0.2495654]
[1763482426446,0.43512,93106.0,93105.0,0.14206]
[1763482426755,0.07432,93106.0,93105.0,0.14206]
[1763482427058,0.00235907,93110.0,93109.0,0.14206]
[1763482427250,0.00235907,93110.0,93109.0,0.19949056]
[1763482427650,0.00235907,93110.0,93109.0,0.14206]
[1763482428655,0.00016104,93110.0,93109.0,0.26076]
[1763482428956,0.3608,93123.0,93109.0,0.26076]
[1763482428957,0.50634,93123.0,93122.0,0.1776558]
[1763482429161,0.50634,93123.0,93122.0,0.1074858]
[1763482429359,0.14554,93118.0,93117.0,0.1074911]
[1763482429560,0.14554,93115.0,93114.0,0.1776645]
[1763482429753,0.14554,93115.0,93114.0,0.23509974]
[1763482429954,0.3608,93123.0,93122.0,0.14206]
[1763482430554,0.43512,93123.0,93122.0,0.14206]
[1763482430757,0.50634,93123.0,93122.0,0.14206]
[1763482430957,0.00016113,93132.0,93130.0,0.1776466]
[1763482430958,0.50634,93131.0,93130.0,0.1776466]
[1763482432253,0.00016113,93132.0,93130.0,0.2495366]
[1763482432456,0.00016113,93132.0,93131.0,0.14206]
[1763482432859,0.00016113,93132.0,93131.0,0.26076]
[1763482433052,0.00016113,93132.0,93131.0,0.31819524]
[1763482433249,0.50650113,93132.0,93131.0,0.1187]
[1763482433456,0.61397543,93132.0,93131.0,0.17610143]
[1763482433655,0.65867543,93132.0,93131.0,0.1187]
[1763482434059,0.50650113,93132.0,93131.0,0.1187]
[1763482434260,0.50650113,93132.0,93131.0,0.26076]
[1763482434760,3e-08,93132.0,93131.0,0.34622211]
[1763482435564,0.07432003,93132.0,93131.0,0.34622211]
[1763482435957,0.00100003,93132.0,93131.0,0.34622211]
[1763482436152,0.50634,93150.0,93149.0,0.1074547]
[1763482436352,0.14554,93137.0,93136.0,0.16480317]
[1763482436558,0.14554,93137.0,93136.0,0.1074697]
[1763482436966,0.3608,93150.0,93149.0,0.2495147]
[1763482437268,0.50195,93163.0,93162.0,0.1074397]
[1763482438152,0.3608,93163.0,93162.0,0.2418997]
[1763482438352,0.3608,93163.0,93162.0,0.255792]
[1763482438953,0.14022103,93172.0,93171.0,0.1074293]
[1763482439362,0.07339103,93172.0,93171.0,0.2418893]
[1763482440268,0.07323,93168.0,93167.0,0.1074333]
[1763482440467,0.07323,93168.0,93167.0,0.2418933]
[1763482441367,0.14006,93168.0,93167.0,0.1074333]
[1763482441759,0.00219803,93170.0,93169.0,0.13446]
[1763482442069,0.14006,93163.0,93162.0,0.19477857]
[1763482442366,0.36396103,93172.0,93162.0,0.19477857]
[1763482442367,0.001,93168.0,93167.0,0.2418939]
[1763482444975,0.14006,93183.0,93172.0,0.3608]
[1763482445271,0.50086,93203.0,93202.0,0.1073936]
[1763482445468,0.14225803,93200.0,93199.0,0.13446]
[1763482445666,0.14225803,93200.0,93198.0,0.1073972]
[1763482445977,0.3608,93203.0,93202.0,0.13446]
[1763482446159,0.00016094,93208.0,93205.0,0.13446]
[1763482446467,0.14006,93231.0,93210.0,0.0389]
[1763482446773,0.3608,93232.0,93229.0,0.13446]
[1763482446774,0.00219803,93230.0,93229.0,0.13446]
[1763482446975,0.3608,93244.0,93243.0,0.2418063]
[1763482448271,0.3608,93244.0,93243.0,0.14844713]
[1763482448962,0.07323,93235.0,93234.0,0.00016094]
[1763482449165,0.14006,93235.0,93234.0,0.00016094]
[1763482449369,0.14006,93235.0,93234.0,0.06931094]
[1763482449765,0.14006,93235.0,93234.0,0.00016094]
[1763482450468,0.14006,93226.0,93225.0,0.14414711]
[1763482450674,0.50086,93226.0,93219.0,0.107373]
[1763482450976,0.14006,93223.0,93222.0,0.1073695]
[1763482451568,0.14225803,93220.0,93219.0,0.01403934]
[1763482451778,0.14225803,93220.0,93218.0,0.1073747]
[1763482451974,0.07323,93219.0,93218.0,0.1073747]
[1763482452170,0.00219803,93220.0,93219.0,0.13446]
[1763482452377,0.00219803,93220.0,93219.0,0.22186813]
[1763482452676,0.14225803,93220.0,93219.0,0.22186813]
[1763482452870,0.14225803,93220.0,93219.0,0.08740813]
[1763482453065,0.3608,93226.0,93219.0,0.13446]
[1763482453265,0.3608,93226.0,93225.0,0.2418271]
[1763482453474,0.00219803,93230.0,93229.0,0.2418225]
[1763482453873,0.3608,93236.0,93235.0,0.1073556]
[1763482454072,0.00073267,93240.0,93239.0,0.241811]
[1763482454267,0.3608,93244.0,93243.0,0.2418062]
[1763482455072,0.3608,93244.0,93243.0,0.5034462]
[1763482455267,0.3608,93244.0,93243.0,0.2418062]
[1763482455473,0.14006,93241.0,93240.0,0.00219803]
[1763482455669,0.3608,93244.0,93240.0,0.00219803]
[1763482455670,0.3608,93244.0,93243.0,0.13446]
[1763482455867,0.00016094,93253.0,93251.0,0.1073359]
[1763482456072,0.14006,93252.0,93251.0,0.1073359]
[1763482456273,0.14006,93251.0,93250.0,0.00219803]
[1763482457569,0.14006,93244.0,93242.0,0.1073466]
[1763482457782,0.14006,93243.0,93242.0,0.1073466]
[1763482458075,0.14006,93243.0,93230.0,0.14414711]
[1763482458076,0.14006,93235.0,93232.0,0.1073587]
[1763482458277,0.50086,93235.0,93224.0,0.107368]
[1763482458880,0.50086,93235.0,93226.0,0.1073655]
[1763482459381,0.50086,93235.0,93234.0,0.10751744]
[1763482459581,0.6082154,93235.0,93234.0,0.00016094]
[1763482459781,0.50086,93235.0,93234.0,0.00016094]
[1763482459982,0.6082154,93235.0,93234.0,0.00016094]
[1763482460482,0.3608,93235.0,93234.0,0.23695744]
[1763482460675,0.3608,93235.0,93234.0,0.10751744]
[1763482460676,0.47646,93235.0,93234.0,0.10751744]
[1763482460870,0.47646,93235.0,93234.0,0.00016094]
[1763482461981,0.47646,93235.0,93234.0,0.10751744]
[1763482461982,0.47746,93235.0,93234.0,0.10751744]
[1763482462178,0.47746,93235.0,93234.0,0.00016094]
[1763482462579,0.47646,93235.0,93234.0,0.00016094]
[1763482463673,0.47646,93235.0,93234.0,0.10751744]
[1763482464380,0.47646,93235.0,93234.0,0.16709744]
[1763482464583,0.73802,93235.0,93234.0,0.10751744]
[1763482465284,0.73802,93235.0,93234.0,0.00016094]
[1763482465487,0.47646,93244.0,93243.0,0.1073461]
[1763482465878,0.11566,93241.0,93240.0,0.00219803]
[1763482466382,0.11566,93235.0,93234.0,0.00016094]
[1763482466585,0.73802,93235.0,93234.0,0.00016094]
[1763482467784,0.8453754,93235.0,93234.0,0.00016094]
[1763482467988,0.11639,93201.0,93200.0,0.1073957]
[1763482468183,0.11639,93197.0,93196.0,0.1074003]
[1763482469093,0.26156,93199.0,93187.0,0.00016094]
[1763482469094,0.11639,93188.0,93187.0,0.00016094]
[1763482469387,0.73871,93188.0,93187.0,0.00016094]
[1763482469787,0.68263,93188.0,93187.0,0.12051094]
[1763482470091,0.3608,93188.0,93187.0,0.12051094]
[1763482470292,0.06031,93170.0,93169.0,0.1074313]
[1763482470592,0.00073267,93170.0,93169.0,0.2277813]
[1763482471392,0.00010742,93170.0,93169.0,0.2277813]
[1763482473107,0.11639,93167.0,93166.0,0.00026834]
[1763482473504,0.11639,93167.0,93155.0,0.01440587]
[1763482473505,0.2238306,93161.0,93155.0,0.01440587]
[1763482473709,0.2238306,93161.0,93151.0,0.1074516]
[1763482473909,0.3608,93164.0,93163.0,0.12035]
[1763482474207,0.00010742,93170.0,93169.0,0.12035]
[1763482474398,0.06115009,93170.0,93169.0,0.06165]
[1763482474597,0.06115009,93170.0,93158.0,0.3608]
[1763482474598,0.11639,93140.0,93136.0,0.1074684]
[1763482474796,0.11639,93132.0,93117.0,0.05733239]
[1763482475000,0.73912644,93132.0,93116.0,0.1074922]
[1763482475310,2.23912644,93132.0,93118.0,0.1074901]
[1763482475610,0.11639,93123.0,93122.0,0.00016102]
[1763482475806,0.47719,93123.0,93122.0,0.00016102]
[1763482477710,0.47819,93123.0,93122.0,0.00016102]
[1763482478411,0.42211,93123.0,93122.0,0.06181102]
[1763482478604,0.001,93123.0,93122.0,0.12051102]
[1763482479311,0.002,93123.0,93122.0,0.12051102]
[1763482480307,0.001,93123.0,93122.0,0.12051102]
[1763482480512,0.36089644,93132.0,93131.0,0.2278253]
[1763482480710,9.644e-05,93132.0,93131.0,0.2278253]
[1763482480913,0.3608,93145.0,93140.0,0.2278149]
[1763482481208,0.3608,93145.0,93140.0,0.12254803]
[1763482481805,0.0002423,93141.0,93140.0,0.12254803]
[1763482482116,0.2240961,93141.0,93140.0,0.00219803]
[1763482482609,0.1074733,93133.0,93124.0,0.2278331]
[1763482482805,0.3610423,93141.0,93120.0,0.54132711]
[1763482482806,0.1074685,93137.0,93130.0,0.00219803]
[1763482483011,0.00073267,93140.0,93130.0,0.00219803]
[1763482483204,0.3610423,93141.0,93130.0,0.00219803]
[1763482483205,0.0002423,93141.0,93140.0,0.2278149]
[1763482483405,0.107412,93186.0,93172.0,0.1690769]
[1763482483607,0.3608,93189.0,93180.0,0.15892803]
[1763482483809,0.4682089,93189.0,93188.0,0.12035]
[1763482484214,0.3608,93205.0,93195.0,0.03638]
[1763482484416,0.3608,93212.0,93204.0,0.12035]
[1763482484618,0.3608,93212.0,93211.0,0.227733]
[1763482484916,0.36086416,93212.0,93211.0,0.227733]
[1763482485620,0.11639,93211.0,93210.0,0.00219803]
[1763482485919,0.36086416,93212.0,93211.0,0.12035]
[1763482486117,0.36086416,93212.0,93210.0,0.00219803]
[1763482486118,0.3608,93228.0,93216.0,0.03638]
[1763482486306,0.00073267,93220.0,93219.0,0.12035]
[1763482487013,0.00073267,93220.0,93219.0,0.06165]
[1763482487519,0.36153267,93220.0,93219.0,0.06165]
[1763482488316,0.36153267,93220.0,93210.0,0.14414711]
[1763482488621,0.3608,93212.0,93210.0,0.00219803]
[1763482488922,0.06031,93211.0,93210.0,0.00219803]
[1763482489122,0.11639,93211.0,93210.0,0.00219803]
[1763482490218,0.00073267,93210.0,93200.0,0.14414711]
[1763482490424,0.3608,93201.0,93200.0,0.00219803]
[1763482490618,0.26204,93209.0,93208.0,0.1690365]
[1763482491014,0.00016094,93210.0,93209.0,0.12035]
[1763482491516,0.00016094,93210.0,93209.0,0.48115]
[1763482492027,0.00089361,93210.0,93209.0,0.06165]
[1763482492216,0.00089361,93210.0,93205.0,0.107389]
[1763482492416,0.4681896,93206.0,93200.0,0.00219803]
[1763482492612,0.1073943,93202.0,93201.0,0.06165]
[1763482492816,0.3608,93206.0,93201.0,0.06165]
[1763482493021,0.1073929,93203.0,93201.0,0.06165]
[1763482493417,0.1073947,93201.0,93200.0,0.00219803]
[1763482493617,0.2237847,93201.0,93200.0,0.00219803]
[1763482494320,0.11639,93201.0,93200.0,0.00219803]
[1763482495118,0.11639,93201.0,93180.0,0.39718]
[1763482495119,0.1074099,93188.0,93180.0,0.03638]
[1763482495424,0.11639,93181.0,93180.0,0.00219803]
[1763482495626,0.00073267,93180.0,93163.0,0.01353307]
[1763482495821,0.06031,93171.0,93170.0,0.00219803]
[1763482496829,0.3608,93173.0,93170.0,0.00219803]
[1763482496830,0.3608,93173.0,93172.0,0.12035]
[1763482497015,0.00016094,93180.0,93179.0,0.16907]
[1763482497215,0.00089361,93180.0,93179.0,0.10742]
[1763482497517,0.06129361,93180.0,93179.0,0.10742]
[1763482497819,0.00089361,93180.0,93179.0,0.16315]
[1763482498423,0.00089361,93180.0,93179.0,0.21578]
[1763482499631,0.00189361,93180.0,93179.0,0.21578]
[1763482500424,0.00116094,93180.0,93179.0,0.57658]
[1763482500926,0.3608,93201.0,93200.0,0.1073958]
[1763482501125,0.47406,93201.0,93200.0,0.00219803]
[1763482501520,0.47406,93201.0,93183.0,0.1074154]
[1763482501521,0.11326,93184.0,93183.0,0.1074154]
[1763482501722,0.0604,93181.0,93180.0,0.10961693]
[1763482501922,0.3608,93208.0,93192.0,0.10836]
[1763482502232,0.3608,93208.0,93207.0,0.10836]
[1763482502420,0.47406,93208.0,93195.0,0.0306]
[1763482502621,0.11326,93204.0,93203.0,0.1073924]
[1763482502824,0.107371,93222.0,93200.0,0.00219803]
[1763482502825,0.11326,93205.0,93200.0,0.10959383]
[1763482503030,0.3608,93212.0,93200.0,0.10959383]
[1763482503031,0.00073267,93210.0,93209.0,0.2157455]
[1763482503228,0.00073267,93210.0,93196.0,0.3608]
[1763482503431,0.11326,93208.0,93207.0,0.1073872]
[1763482503623,0.1073787,93206.0,93196.0,0.3608]
[1763482503820,0.36096094,93212.0,93211.0,0.10836]
[1763482504134,0.00016094,93212.0,93211.0,0.10836]
[1763482505424,0.00016094,93212.0,93210.0,0.03279803]
[1763482505425,0.0604,93211.0,93210.0,0.00219803]
[1763482505822,0.11326,93211.0,93210.0,0.00219803]
[1763482506025,0.00016094,93212.0,93211.0,0.2157327]
[1763482506237,0.3608,93243.0,93239.0,0.10734]
[1763482506832,0.0604,93247.0,93246.0,0.1073318]
[1763482507034,0.3608,93261.0,93260.0,0.1073163]
[1763482507226,0.26212,93265.0,93264.0,0.1073117]
[1763482507433,0.26212,93265.0,93264.0,0.2462717]
[1763482507633,0.26212,93265.0,93264.0,0.13896]
[1763482507834,0.0604,93261.0,93260.0,0.00219803]
[1763482508036,0.11326,93252.0,93251.0,0.00016084]
[1763482508232,0.37538,93252.0,93251.0,0.00016084]